bitfinex-derivatives/quotes_ETHF0:USTF0_20240930
["timestamp","ask_amount","ask_price","bid_price","bid_amount"]
[1727714049262,3.2078,2607.6,2607.5,6.23802]
[1727714049459,2.49997271,2608.0,2607.5,15.0623]
[1727714049670,2.95557271,2608.2,2608.1,0.38344]
[1727714049856,0.4556,2608.2,2608.1,0.38344]
[1727714050863,0.83902,2608.2,2608.1,0.38344]
[1727714051553,0.83903,2608.2,2608.1,0.38344]
[1727714054061,0.38344,2608.1,2608.0,1.30654]
[1727714054370,2.88123092,2608.1,2608.0,1.30654]
[1727714055263,0.38344,2608.1,2608.0,0.9231]
[1727714055464,2.77344,2608.1,2608.0,0.4654]
[1727714056068,5.76481256,2608.1,2608.0,0.4654]
[1727714057468,0.95868,2607.9,2607.3,3.2078]
[1727714057669,2.88191291,2607.6,2607.5,0.38351]
[1727714058370,0.38352,2607.6,2607.5,0.38352]
[1727714058568,0.95874,2607.7,2607.4,0.4687]
[1727714058975,0.95874,2607.7,2607.5,0.38352]
[1727714058976,0.38352,2607.6,2607.5,0.38352]
[1727714060283,4.1435,2607.8,2607.4,0.4687]
[1727714060470,0.38349,2607.7,2607.6,0.3835]
[1727714060876,2.88242755,2607.7,2607.6,0.3835]
[1727714061071,2.88242755,2607.7,2607.4,0.4687]
[1727714061370,0.38351,2607.6,2607.5,0.38351]
[1727714062069,0.38351,2607.6,2607.5,0.38352]
[1727714062265,0.3835,2607.7,2607.6,0.38351]
[1727714062586,7.60114755,2607.8,2607.4,0.4687]
[1727714062882,0.38351,2607.6,2607.5,0.38351]
[1727714063366,2.49893755,2607.7,2607.4,0.4687]
[1727714063563,2.88244755,2607.7,2607.6,0.38351]
[1727714064578,2.49893755,2607.7,2607.4,0.4687]
[1727714064774,3.43463755,2607.8,2607.7,0.38349]
[1727714064976,2.97803755,2607.8,2607.7,0.38349]
[1727714065281,2.99808349,2608.1,2607.6,2.39]
[1727714065480,0.38344,2608.1,2608.0,0.38345]
[1727714066169,6.64418349,2608.2,2607.7,1.42454]
[1727714066365,2.50023949,2607.9,2607.8,0.38348]
[1727714066776,2.50023949,2607.9,2607.8,4.21788]
[1727714067476,2.88369949,2607.9,2607.8,4.21788]
[1727714067676,2.50023949,2607.9,2607.8,4.21788]
[1727714067878,2.88369949,2607.9,2607.8,4.21788]
[1727714068478,2.88369949,2607.9,2607.8,0.38348]
[1727714068676,2.88369949,2607.9,2607.8,4.21788]
[1727714068871,2.88369949,2607.9,2607.8,0.38348]
[1727714069077,2.88369949,2607.9,2607.8,4.21788]
[1727714069671,2.88369949,2607.9,2607.8,0.38348]
[1727714069879,2.88369949,2607.9,2607.8,4.21788]
[1727714070080,2.88369949,2607.9,2607.8,0.38348]
[1727714070388,2.50023949,2607.9,2607.8,6.60788]
[1727714070687,7.02761349,2608.2,2608.1,0.38344]
[1727714070688,4.02953,2608.2,2608.1,0.38344]
[1727714071076,4.02952,2608.2,2608.1,0.38344]
[1727714074586,3.6461,2608.2,2608.1,0.38344]
[1727714075493,4.02952,2608.2,2608.1,0.38344]
[1727714076586,3.59122,2608.2,2608.1,0.38344]
[1727714077483,3.2078,2608.2,2608.1,0.38344]
[1727714077880,3.2078,2608.2,2608.1,4.21784]
[1727714078481,10.1957,2608.4,2608.3,0.38341]
[1727714078694,10.1957,2608.4,2608.3,8.77341]
[1727714078998,10.1957,2608.4,2608.3,12.60701]
[1727714080183,10.1957,2608.4,2608.3,6.60701]
[1727714080379,10.1957,2608.4,2608.3,10.21701]
[1727714080582,10.1957,2608.4,2608.3,4.21701]
[1727714080981,10.1957,2608.4,2608.2,2.8426]
[1727714080982,10.6503,2608.4,2608.1,3.2078]
[1727714081189,0.38343,2608.2,2608.1,0.38342]
[1727714082991,0.38342,2608.3,2608.2,0.38341]
[1727714083183,0.38343,2608.2,2608.1,0.38342]
[1727714083778,10.6503,2608.4,2608.0,0.4412]
[1727714083982,0.38343,2608.2,2608.1,0.38343]
[1727714084384,11.6088,2608.4,2608.0,0.4412]
[1727714084585,11.6088,2608.4,2608.2,0.38341]
[1727714084586,0.38342,2608.3,2608.2,0.38341]
[1727714084888,0.38343,2608.2,2608.1,0.38342]
[1727714085393,0.38344,2608.1,2608.0,0.82464]
[1727714085590,0.38343,2608.2,2608.1,0.38342]
[1727714087091,10.6503,2608.4,2608.0,0.4412]
[1727714087291,0.38341,2608.3,2608.2,0.38341]
[1727714087601,10.6503,2608.4,2608.3,0.38341]
[1727714087602,11.0337,2608.4,2608.3,0.38341]
[1727714090200,11.03369,2608.4,2608.3,0.38341]
[1727714092098,10.6503,2608.4,2608.3,0.38341]
[1727714092294,11.03369,2608.4,2608.3,0.38341]
[1727714093093,0.38342,2608.3,2608.2,0.38341]
[1727714094798,0.38344,2608.1,2608.0,0.82463]
[1727714094997,0.38344,2608.1,2608.0,0.4412]
[1727714095194,4.16639,2608.2,2607.7,2.39]
[1727714095394,0.38348,2607.9,2607.8,0.38347]
[1727714095905,0.38348,2607.9,2607.8,4.21787]
[1727714096596,3.39457213,2608.0,2607.9,0.38346]
[1727714096900,3.39457213,2608.0,2607.9,2.77346]
[1727714099497,2.50157213,2608.1,2608.0,0.38345]
[1727714099700,2.93377213,2608.2,2608.1,0.38344]
[1727714100206,2.93617339,2608.2,2608.1,0.38344]
[1727714103395,0.4322,2608.2,2608.1,0.38344]
[1727714105003,0.81562,2608.2,2608.1,0.38344]
[1727714105306,0.4322,2608.2,2608.1,0.38344]
[1727714105895,10.6278,2608.4,2608.1,4.64894]
[1727714106094,10.631,2608.4,2608.3,5.98121]
[1727714106308,10.1957,2608.4,2608.3,5.98121]
[1727714106507,10.1957,2608.4,2608.3,15.90331]
[1727714106707,10.1957,2608.4,2608.3,9.81481]
[1727714108005,10.1957,2608.4,2608.3,15.81481]
[1727714108196,10.1957,2608.4,2608.3,9.81481]
[1727714108709,10.1957,2608.4,2608.3,15.81481]
[1727714109906,10.1957,2608.4,2608.3,16.82056323]
[1727714110208,10.1957,2608.4,2608.3,18.14293709]
[1727714110405,10.1957,2608.4,2608.3,18.14310312]
[1727714110613,10.1957,2608.4,2608.3,15.81481]
[1727714111003,10.1957,2608.4,2608.3,21.11922631]
[1727714111305,10.1957,2608.4,2608.3,20.11347308]
[1727714111613,0.4509,2609.0,2608.9,0.38332]
[1727714111801,0.4509,2609.0,2608.9,2.77332]
[1727714113109,2.45676755,2609.0,2608.9,2.77332]
[1727714113911,2.45676755,2609.0,2608.9,6.60612]
[1727714114407,2.45676755,2609.0,2608.9,2.77332]
[1727714114803,2.45676755,2609.0,2608.9,6.60612]
[1727714116402,2.45676755,2609.0,2608.9,2.77332]
[1727714116605,2.45676755,2609.0,2608.9,6.60612]
[1727714116806,2.45676755,2609.0,2608.9,2.77332]
[1727714117111,2.84006755,2609.0,2608.8,0.4296]
[1727714117312,2.45676755,2609.0,2608.7,2.39]
[1727714117613,0.38333,2608.8,2608.7,0.38332]
[1727714118415,2.38919755,2608.9,2608.8,0.38333]
[1727714118710,0.38333,2608.9,2608.8,0.38333]
[1727714118907,3.38141349,2608.9,2608.8,0.38333]
[1727714121306,3.38141349,2608.9,2608.5,3.34844]
[1727714121518,2.50320042,2608.6,2608.5,2.77338]
[1727714121704,2.50372374,2608.6,2608.5,2.77338]
[1727714122017,3.34842374,2608.6,2608.5,2.77338]
[1727714122411,0.8447,2608.6,2608.5,2.77338]
[1727714122808,0.4169,2608.6,2608.5,2.77338]
[1727714124213,2.92062374,2608.6,2608.5,2.77338]
[1727714125520,0.4169,2608.6,2608.5,2.77338]
[1727714128114,0.4169,2608.6,2608.5,6.60698]
[1727714128317,3.2078,2609.0,2608.5,16.43715323]
[1727714128513,0.4596,2608.9,2608.8,0.38333]
[1727714128708,0.4596,2608.9,2608.8,0.75993]
[1727714128916,0.4596,2608.9,2608.8,4.59273]
[1727714130120,0.4596,2608.9,2608.8,0.75993]
[1727714130613,0.4596,2608.9,2608.8,0.38333]
[1727714134309,0.4596,2608.9,2608.8,4.21613]
[1727714134513,2.00346778,2609.2,2609.1,0.38329]
[1727714134717,0.4001,2609.2,2609.1,0.38329]
[1727714135514,0.4001,2609.2,2609.1,4.21609]
[1727714135813,2.39396778,2609.6,2609.5,0.38323]
[1727714136012,2.40386778,2609.6,2609.5,0.38323]
[1727714136213,0.4004,2609.6,2609.5,0.38323]
[1727714136417,0.4004,2609.6,2609.5,0.76513]
[1727714136816,0.3905,2609.9,2609.8,0.38319]
[1727714137010,0.77367,2609.9,2609.8,2.77319]
[1727714137419,0.3905,2609.9,2609.8,2.77319]
[1727714137719,0.77367,2609.9,2609.8,2.39]
[1727714138419,0.77367,2609.9,2609.8,2.77319]
[1727714138622,0.77367,2609.9,2609.8,2.39]
[1727714139225,3.5983,2609.9,2609.6,2.39]
[1727714139417,3.5983,2609.9,2609.4,0.3842]
[1727714139418,0.38321,2609.7,2609.5,0.38322]
[1727714139821,0.3833,2609.6,2609.5,0.38322]
[1727714140919,2.38497015,2609.6,2609.5,0.38322]
[1727714141120,0.3833,2609.6,2609.5,0.38322]
[1727714141319,2.38460431,2609.6,2609.5,0.38322]
[1727714141523,2.88702374,2609.6,2609.5,0.38322]
[1727714143625,0.3833,2609.6,2609.5,0.38322]
[1727714144927,2.00115127,2609.6,2609.5,4.21522]
[1727714145429,2.50372374,2609.8,2609.5,3.832]
[1727714145625,2.00109471,2609.6,2609.5,0.38323]
[1727714145934,2.00109471,2609.7,2609.6,0.38321]
[1727714146323,1.39179471,2609.7,2609.6,4.21521]
[1727714146538,2.86952374,2609.9,2609.8,0.38319]
[1727714146539,0.3658,2609.9,2609.8,0.38319]
[1727714146726,0.3658,2609.9,2609.8,2.77319]
[1727714149130,0.3658,2609.9,2609.7,3.59099]
[1727714149336,0.74898,2609.9,2609.7,3.59099]
[1727714149543,0.74898,2609.9,2609.7,3.2078]
[1727714149544,0.38319,2609.8,2609.7,3.2078]
[1727714149837,3.5736,2609.9,2609.4,5.9687]
[1727714150136,0.3708,2609.7,2609.4,5.9687]
[1727714150325,0.38321,2609.6,2609.4,6.35193]
[1727714150636,0.3708,2609.7,2609.6,0.38321]
[1727714150835,0.754,2609.7,2609.5,0.38322]
[1727714151333,0.3708,2609.7,2609.4,5.9687]
[1727714151633,0.3708,2609.7,2609.6,0.38321]
[1727714152335,0.754,2609.7,2609.5,0.38322]
[1727714152833,0.754,2609.7,2609.4,5.9687]
[1727714152834,0.3708,2609.7,2609.4,5.9687]
[1727714153134,0.3708,2609.7,2609.6,0.38321]
[1727714153535,0.3708,2609.7,2609.4,5.9687]
[1727714153732,0.3708,2609.7,2609.5,0.38322]
[1727714154440,0.3708,2609.7,2609.6,0.38321]
[1727714154639,0.3708,2609.7,2609.4,2.7609]
[1727714154933,0.3708,2609.7,2609.5,0.38322]
[1727714155140,0.3708,2609.7,2609.4,2.7609]
[1727714155332,0.3708,2609.7,2609.6,0.38321]
[1727714155639,0.3708,2609.7,2609.5,0.38322]
[1727714155940,2.50372374,2609.6,2609.5,0.38322]
[1727714159236,0.75401,2609.7,2609.5,0.38323]
[1727714159836,0.75401,2609.7,2609.4,0.3709]
[1727714159837,0.75401,2609.7,2609.4,0.75413]
[1727714160139,2.50355445,2609.5,2609.4,0.75413]
[1727714160341,2.50355445,2609.5,2609.4,0.38323]
[1727714160736,2.87425445,2609.5,2609.4,0.38323]
[1727714162235,2.87425445,2609.5,2609.4,2.77323]
[1727714163745,0.3707,2609.5,2609.4,2.77323]
[1727714164429,4.16574,2609.9,2609.8,0.38319]
[1727714164430,3.2078,2609.9,2609.8,0.38319]
[1727714164630,0.3741,2610.1,2610.0,0.38316]
[1727714164935,0.3741,2610.1,2610.0,2.77316]
[1727714166935,0.395,2610.3,2610.0,2.39]
[1727714167137,3.59089,2610.5,2610.2,2.77313]
[1727714167138,0.3777,2610.4,2610.2,2.77313]
[1727714167343,0.3777,2610.4,2610.2,2.39]
[1727714167642,0.3777,2610.4,2610.2,2.77312]
[1727714168343,0.3777,2610.4,2610.3,0.38311]
[1727714168637,0.3777,2610.4,2610.3,0.76121]
[1727714169850,3.59085,2610.8,2610.5,0.38307]
[1727714169851,3.2078,2610.8,2610.5,0.38307]
[1727714170143,0.385,2610.7,2610.5,0.38308]
[1727714170845,3.88802162,2610.7,2610.5,0.38308]
[1727714171041,3.88802162,2610.7,2610.4,2.39]
[1727714171042,3.00310291,2610.6,2610.4,2.39]
[1727714171636,3.00310291,2610.6,2610.4,2.77308]
[1727714172036,3.00310291,2610.5,2610.4,2.39]
[1727714172345,3.00310291,2610.5,2610.4,0.3831]
[1727714172639,3.00310291,2610.5,2610.3,0.38311]
[1727714172640,3.38618291,2610.5,2610.3,0.38311]
[1727714173239,3.00310291,2610.5,2610.2,2.77311]
[1727714173442,3.38619291,2610.5,2610.2,2.77311]
[1727714173941,0.38313,2610.2,2610.0,2.39]
[1727714174151,0.7519,2610.1,2610.0,2.77315]
[1727714174343,0.7519,2610.1,2610.0,2.39]
[1727714174748,0.7519,2610.1,2609.8,0.3911]
[1727714174749,0.7519,2610.1,2609.8,2.7811]
[1727714175042,0.7519,2610.1,2609.6,2.77321]
[1727714175043,3.00310291,2610.0,2609.6,2.77321]
[1727714175242,0.38319,2609.8,2609.6,2.77321]
[1727714175438,0.3832,2609.7,2609.6,2.39]
[1727714175637,0.7567,2609.7,2609.6,2.39]
[1727714175843,0.3735,2609.7,2609.6,2.77321]
[1727714176238,0.3735,2609.7,2609.6,2.39]
[1727714176643,0.3735,2609.7,2609.4,6.0007]
[1727714176946,0.3878,2609.6,2609.5,0.38323]
[1727714177147,0.3878,2609.6,2609.4,6.0007]
[1727714177346,0.3878,2609.6,2609.5,0.38323]
[1727714177545,3.39090291,2609.6,2609.5,0.38323]
[1727714177940,0.3878,2609.6,2609.5,0.38323]
[1727714179143,0.77101,2609.6,2609.4,6.38393]
[1727714179346,0.3878,2609.6,2609.5,0.38323]
[1727714179551,0.3735,2609.7,2609.6,0.38321]
[1727714179745,0.38317,2610.0,2609.8,0.38318]
[1727714179943,0.75697,2610.0,2609.9,2.39]
[1727714180345,0.3738,2610.0,2609.9,2.77317]
[1727714180541,2.5055397,2610.3,2609.9,2.77317]
[1727714180542,2.00443176,2610.2,2610.1,0.38314]
[1727714180741,0.38312,2610.3,2610.1,2.77314]
[1727714180742,2.78595176,2610.3,2610.1,2.77314]
[1727714181248,0.38313,2610.2,2610.1,2.39]
[1727714181855,0.38313,2610.2,2610.1,2.77314]
[1727714182349,2.40283176,2610.3,2610.1,2.77314]
[1727714182553,0.38313,2610.2,2610.1,2.77313]
[1727714182752,0.38313,2610.2,2610.1,2.39]
[1727714183052,0.38313,2610.2,2610.1,2.77314]
[1727714183437,0.38313,2610.2,2610.1,2.39]
[1727714183644,2.40283176,2610.3,2610.1,2.39]
[1727714183844,0.38313,2610.2,2610.1,2.77313]
[1727714185353,2.40283176,2610.3,2610.1,2.39]
[1727714185553,0.38313,2610.2,2610.1,2.77313]
[1727714186649,0.78152,2610.3,2610.2,0.38313]
[1727714186846,0.3984,2610.3,2610.2,0.38313]
[1727714187549,2.38754176,2610.4,2610.1,2.39]
[1727714187854,2.38754176,2610.4,2610.3,0.38311]
[1727714188652,2.38754176,2610.4,2610.1,2.39]
[1727714189043,0.38312,2610.3,2610.2,0.38312]
[1727714189245,2.00443176,2610.4,2610.1,2.39]
[1727714189558,0.38309,2610.5,2610.4,0.3831]
[1727714190357,2.77390176,2610.6,2610.5,0.38308]
[1727714190856,0.3864,2610.6,2610.5,0.38308]
[1727714191055,0.76947,2610.6,2610.5,0.77808]
[1727714191449,2.77390176,2610.6,2610.5,0.77808]
[1727714191752,0.3864,2610.6,2610.5,0.77808]
[1727714192359,2.77390176,2610.6,2610.5,0.77808]
[1727714192743,0.76947,2610.6,2610.5,0.77808]
[1727714193151,0.3864,2610.6,2610.5,0.77808]
[1727714193350,3.77719215,2610.6,2610.5,0.77808]
[1727714193962,0.38311,2610.4,2610.3,0.38309]
[1727714195160,0.38311,2610.4,2610.1,0.791]
[1727714195161,0.95775,2610.4,2610.1,0.791]
[1727714195457,3.96549366,2610.4,2609.9,2.39]
[1727714195659,2.50646131,2610.0,2609.9,2.77315]
[1727714196158,2.87376131,2610.0,2609.9,2.77315]
[1727714200969,0.3673,2610.0,2609.9,2.77315]
[1727714203771,2.00571749,2610.4,2610.3,0.38311]
[1727714203772,2.38881749,2610.4,2610.3,0.38311]
[1727714203978,0.7591,2610.4,2610.3,0.38311]
[1727714204270,6.59601749,2610.4,2610.3,0.38311]
[1727714204476,2.76481749,2610.4,2610.3,0.38311]
[1727714205566,6.59601749,2610.4,2610.3,0.38311]
[1727714205971,0.38311,2610.3,2610.2,2.77312]
[1727714206168,2.38171749,2610.4,2610.2,2.39]
[1727714206373,0.376,2610.4,2610.2,2.39]
[1727714206567,2.38171749,2610.4,2610.2,2.39]
[1727714206773,0.38311,2610.3,2610.2,2.77312]
[1727714208776,3.9669,2610.4,2610.3,0.38311]
[1727714208976,0.38311,2610.3,2610.2,2.77312]
[1727714209373,0.376,2610.4,2610.3,0.38311]
[1727714210082,2.88551885,2610.4,2610.3,0.38311]
[1727714210476,2.50951885,2610.4,2610.3,0.38311]
[1727714211474,2.89261885,2610.4,2610.3,0.38311]
[1727714211681,3.39134366,2610.6,2610.2,2.39]
[1727714211986,2.50999786,2610.3,2610.2,2.77313]
[1727714212783,0.38311,2610.3,2610.2,2.77313]
[1727714212977,0.76531,2610.3,2610.2,2.77313]
[1727714213173,0.3822,2610.3,2610.0,3.1395]
[1727714213483,3.25914282,2610.2,2610.1,0.38313]
[1727714214986,2.87601282,2610.2,2610.1,0.38313]
[1727714216086,0.3659,2610.2,2610.1,0.38313]
[1727714217286,0.74903,2610.2,2610.1,0.38313]
[1727714217987,2.75731036,2610.2,2610.1,0.38313]
[1727714218287,0.74903,2610.2,2610.1,0.38313]
[1727714218478,2.75731036,2610.2,2610.1,0.38313]
[1727714218684,0.74903,2610.2,2610.1,0.38313]
[1727714218985,2.75731036,2610.2,2610.1,0.38313]
[1727714221387,2.37418036,2610.2,2610.1,0.38313]
[1727714221687,0.74903,2610.2,2610.1,0.38313]
[1727714221982,2.75731036,2610.2,2610.1,0.38313]
[1727714222181,0.74903,2610.2,2610.1,0.38313]
[1727714222582,2.75731036,2610.2,2610.1,0.38313]
[1727714223091,0.74903,2610.2,2610.1,0.38313]
[1727714224281,0.3659,2610.2,2610.1,0.38313]
[1727714224490,0.3659,2610.2,2610.1,0.75013]
[1727714225881,0.74903,2610.2,2610.1,0.75013]
[1727714226386,0.3659,2610.2,2610.1,0.75013]
[1727714227879,0.74903,2610.2,2610.1,0.75013]
[1727714229090,0.3659,2610.2,2610.1,0.75013]
[1727714231084,0.74903,2610.2,2610.1,2.05815781]
[1727714231286,2.37673042,2610.2,2610.1,1.75398874]
[1727714231783,2.37673042,2610.2,2610.1,1.38698874]
[1727714231784,2.75986042,2610.2,2610.1,1.38698874]
[1727714232587,0.74903,2610.2,2610.1,0.38313]
[1727714234193,6.71063803,2610.2,2610.0,1.00385874]
[1727714234399,4.6087,2610.1,2609.7,1.00385874]
[1727714234693,4.6087,2610.1,2609.8,0.38319]
[1727714234694,2.89720434,2609.9,2609.8,0.38319]
[1727714234997,2.51402434,2609.9,2609.8,0.38319]
[1727714235701,2.89719434,2609.9,2609.8,0.38319]
[1727714235998,2.51402434,2609.9,2609.6,3.39385874]
[1727714236300,2.77221329,2609.8,2609.6,2.39]
[1727714236503,0.7618,2609.8,2609.7,0.3832]
[1727714236791,0.38321,2609.6,2609.5,0.78632]
[1727714236995,2.3938218,2609.6,2609.5,0.38322]
[1727714237389,0.38323,2609.5,2609.4,2.77324]
[1727714237885,0.38323,2609.5,2609.2,1.00385874]
[1727714237886,3.832,2609.5,2609.2,1.00385874]
[1727714238205,0.38326,2609.3,2609.2,0.38327]
[1727714238390,0.3786,2609.4,2609.3,0.38326]
[1727714238790,0.76184,2609.4,2609.3,0.38326]
[1727714239493,0.76184,2609.4,2609.2,2.77327]
[1727714239901,0.38326,2609.3,2609.2,2.77327]
[1727714240197,0.3786,2609.4,2609.3,0.38326]
[1727714240198,0.76185,2609.4,2609.3,0.38326]
[1727714240498,0.3786,2609.4,2609.2,2.39]
[1727714240798,0.3786,2609.4,2609.2,2.77326]
[1727714240799,0.38326,2609.3,2609.2,2.77326]
[1727714242894,0.38326,2609.3,2609.2,2.39]
[1727714243300,0.38329,2609.1,2609.0,5.98109]
[1727714244096,0.95815,2609.3,2609.0,5.5978]
[1727714244396,0.38329,2609.1,2609.0,2.77329]
[1727714244799,0.95815,2609.3,2609.0,2.39]
[1727714244994,0.95815,2609.3,2609.1,0.38328]
[1727714244995,0.38328,2609.2,2609.1,0.38328]
[1727714245592,0.38329,2609.2,2609.1,0.38328]
[1727714248201,0.38327,2609.3,2609.2,0.38326]
[1727714250201,0.3786,2609.4,2609.3,0.38326]
[1727714250403,0.3786,2609.4,2609.3,1.19456]
[1727714250603,3.2078,2609.5,2609.4,0.38324]
[1727714250802,2.0106118,2609.8,2609.7,0.3832]
[1727714250803,3.98089,2609.8,2609.7,0.3832]
[1727714251604,0.38321,2609.7,2609.6,0.38321]
[1727714251807,0.38323,2609.6,2609.5,0.38322]
[1727714252002,0.78853,2609.6,2609.5,0.38322]
[1727714253313,0.38324,2609.5,2609.4,0.38323]
[1727714254003,0.8279,2609.6,2609.3,0.3888]
[1727714254205,0.8279,2609.6,2609.2,0.38326]
[1727714254206,0.38328,2609.3,2609.2,0.38326]
[1727714255212,0.4019,2609.4,2609.3,0.38326]
[1727714255420,4.61714,2609.4,2609.3,0.38326]
[1727714255917,0.78514,2609.4,2609.3,0.38326]
[1727714256316,4.61714,2609.4,2609.3,0.38326]
[1727714256517,0.38327,2609.3,2609.2,0.38326]
[1727714258012,0.78516,2609.4,2609.3,0.38326]
[1727714258510,4.61716,2609.4,2609.3,0.38326]
[1727714261216,0.78516,2609.4,2609.3,0.38326]
[1727714266711,0.78516,2609.4,2609.3,0.79646]
[1727714269217,0.78516,2609.4,2609.3,0.38326]
[1727714269218,4.61716,2609.4,2609.3,0.38326]
[1727714269919,0.38328,2609.3,2609.2,0.38326]
[1727714272911,0.38328,2609.3,2609.0,0.4028]
[1727714273116,0.3833,2609.1,2609.0,0.38329]
[1727714274125,0.81199,2609.2,2609.1,0.38329]
[1727714274321,4.64479,2609.2,2609.1,0.38329]
[1727714278415,6.6554018,2609.2,2609.1,0.38329]
[1727714280525,4.64479,2609.2,2609.1,0.38329]
[1727714281129,0.81199,2609.2,2609.1,0.38329]
[1727714282121,3.32601434,2609.2,2609.1,0.38329]
[1727714282320,11.36332434,2609.2,2608.8,0.8209]
[1727714282525,2.39365591,2609.0,2608.9,0.38331]
[1727714282823,0.38332,2609.0,2608.9,0.38331]
[1727714283023,0.78672,2609.0,2608.9,0.38331]
[1727714283227,2.79673274,2609.0,2608.9,0.38331]
[1727714283529,0.78672,2609.0,2608.9,0.38331]
[1727714283727,2.91586771,2609.0,2608.9,1.76331]
[1727714284732,3.29916771,2609.0,2608.9,1.76331]
[1727714284933,3.29916771,2609.0,2608.9,0.38331]
[1727714285123,3.29916771,2609.0,2608.8,2.2009]
[1727714285336,0.38332,2608.9,2608.8,2.58422]
[1727714287833,2.91586771,2609.0,2608.8,2.2009]
[1727714288033,3.29918771,2609.0,2608.9,0.38332]
[1727714289541,3.29918771,2609.0,2608.8,0.8209]
[1727714289738,0.38332,2608.9,2608.8,1.20422]
[1727714290330,3.29918771,2609.0,2608.9,0.38332]
[1727714290536,2.79650845,2609.0,2608.9,0.38332]
[1727714293638,0.78855,2608.8,2608.7,0.38334]
[1727714294133,0.38335,2608.8,2608.7,0.38334]
[1727714298038,0.38335,2608.7,2608.6,3.6236]
[1727714298238,4.21695,2608.7,2608.6,3.2078]
[1727714298438,6.66083845,2608.7,2608.6,3.2078]
[1727714299244,4.65105,2608.7,2608.6,3.2078]
[1727714299545,6.66037006,2608.7,2608.6,3.2078]
[1727714299743,4.65105,2608.7,2608.6,3.2078]
[1727714299943,6.03105,2608.7,2608.6,3.2078]
[1727714300838,14.54351771,2608.7,2608.6,3.2078]
[1727714301034,14.54351771,2608.7,2607.9,2.49296984]
[1727714301035,0.38339,2608.4,2608.3,3.2078]
[1727714301239,3.77248515,2608.4,2608.3,3.2078]
[1727714301440,3.77248515,2608.4,2607.7,1.00385874]
[1727714301441,16.93386771,2608.4,2607.7,1.00385874]
[1727714301639,4.97128,2607.8,2607.7,0.4354]
[1727714302038,6.97986776,2607.8,2607.7,0.4354]
[1727714302235,0.38351,2607.6,2607.5,0.4418]
[1727714302541,1.76351,2607.6,2607.5,0.4161]
[1727714304846,0.38351,2607.6,2607.5,0.4161]
[1727714305347,3.2078,2607.8,2607.6,0.3835]
[1727714305557,3.2078,2607.8,2607.7,0.38349]
[1727714305558,3.59128,2607.8,2607.7,0.38349]
[1727714306751,3.2078,2607.8,2607.7,0.38349]
[1727714306946,3.59128,2607.8,2607.7,0.38349]
[1727714307848,3.2078,2607.8,2607.7,0.38349]
[1727714308550,3.59128,2607.8,2607.7,0.38349]
[1727714309052,3.6414,2608.2,2607.6,0.4086]
[1727714309244,0.38345,2608.0,2607.9,0.38346]
[1727714311246,6.6314,2608.2,2607.6,0.4086]
[1727714311449,3.59127,2607.9,2607.8,0.38348]
[1727714312654,0.38349,2607.8,2607.7,0.38349]
[1727714312841,3.2078,2607.9,2607.6,0.4086]
[1727714313046,0.82289,2607.7,2607.6,0.7921]
[1727714313243,0.82289,2607.7,2607.6,0.3835]
[1727714313449,0.38351,2607.6,2607.5,0.79961]
[1727714313852,0.8229,2607.7,2607.6,0.38351]
[1727714316858,0.4394,2607.7,2607.6,0.38351]
[1727714317050,4.03069,2607.7,2607.6,0.38351]
[1727714317559,1.37447,2607.9,2607.5,0.4161]
[1727714317560,0.38348,2607.9,2607.8,0.38347]
[1727714317951,0.38349,2607.8,2607.7,0.38348]
[1727714320552,0.38347,2607.9,2607.8,0.38347]
[1727714320755,0.38347,2607.9,2607.5,1.37491]
[1727714320756,3.59126,2608.0,2607.9,0.38346]
[1727714320951,3.59126,2608.0,2607.5,1.37491]
[1727714320952,0.38349,2607.8,2607.7,0.38348]
[1727714321648,0.38351,2607.6,2607.5,0.4161]
[1727714322058,0.38352,2607.5,2607.4,0.4354]
[1727714334164,3.37352,2607.5,2607.4,0.4354]
[1727714335562,1.76352,2607.5,2607.4,0.4354]
[1727714337060,0.38357,2607.2,2607.1,0.80608]
[1727714337368,3.59137,2607.2,2607.1,1.20618]
[1727714339566,3.59137,2607.2,2607.1,0.8226]
[1727714340374,3.59137,2607.2,2607.1,1.20618]
[1727714341574,3.2078,2607.2,2607.1,1.20618]
[1727714341975,3.59137,2607.2,2607.1,0.8226]
[1727714342173,3.2078,2607.2,2606.9,0.4003]
[1727714342371,1.7636,2607.0,2606.9,0.4003]
[1727714343167,1.7636,2607.0,2606.7,0.8135]
[1727714343168,1.38,2607.0,2606.7,0.8135]
[1727714343375,0.4001,2607.1,2606.7,1.19714]
[1727714343376,1.38,2606.8,2606.7,1.19714]
[1727714344267,1.38,2606.8,2606.3,4.21165874]
[1727714344469,0.402,2606.9,2606.6,1.19605]
[1727714344668,0.402,2606.9,2606.6,0.8124]
[1727714344669,0.38364,2606.7,2606.6,0.8124]
[1727714344870,0.38366,2606.6,2606.5,0.4116]
[1727714345380,0.38366,2606.6,2606.3,0.8124]
[1727714345381,0.38369,2606.4,2606.3,0.8124]
[1727714345578,6.59149,2606.4,2606.3,0.8124]
[1727714345967,0.38373,2606.1,2606.0,0.4245]
[1727714346164,6.59153,2606.1,2606.0,0.4245]
[1727714348868,3.2078,2606.1,2606.0,0.80824]
[1727714352567,3.59153,2606.1,2606.0,0.4245]
[1727714352768,4.02443,2606.1,2606.0,0.4245]
[1727714352973,7.02443,2606.1,2606.0,0.4245]
[1727714353575,10.86203,2606.1,2606.0,0.4245]
[1727714354975,10.4783,2606.1,2605.9,0.415]
[1727714355178,0.38374,2606.0,2605.9,0.415]
[1727714356682,0.38376,2605.9,2605.8,0.4202]